{"text_format":"1","workbook":"xlsx","n_sheets":4,"sheets":["start_here","Budget_AddReduce_template","Budget_Reallocate_Template","Your_Notes"],"not_rendered":{"charts":0,"images":3,"macros":1,"external_links":0,"defined_names":0,"comments":0,"pivot_tables":0},"unopened":[],"bounds":{"document_bytes":16777216,"sheet_cells":100000,"rows_first":2000,"rows_last":500,"rows_between":2000,"halvings":0,"cell_chars":16384,"cell_head_chars":4096},"cells_cut":0,"cells_raw":0,"read":"whole","date_system":"1900"}

{"sheet":"start_here","index":0,"n_rows":32,"n_cols":8,"rows_kept":32,"cut":false,"hidden":false,"merged":[]}
[null,null,"STEP1",null,null,null,null,"Type of Budget Change"]
[null,null,null,null,null,null,null,"Reallocate Budget"]
[null,null,null,null,null,null,null,"Add/Reduce Budget"]
[]
[null,"STEP1"]
[]
[null,"Budget Action","Add/Reduce Budget",{"$f":"IF(C7=\"Reallocate Budget\",0,IF(C7=\"Add/Reduce Budget\",1,2))","v":1},null,{"$f":"LEN(C7)","v":17}]
[null,"# of Projects affected by this action",1]
[null,"Oracle Assigned Award Number","######"]
[null,"New Funding Total",0]
[null,"Grant End Date","1901-01-01",null,{"$f":"C11","v":367}]
[null,"Revised End Date","1902-01-01",null,null,{"$f":"C12-C11","v":365}]
[]
[]
[]
[null,null,"STEP2 (Automated)"]
[]
[]
[]
[]
[]
[]
[]
[null,null,"STEP3 (Manual"]
[]
[]
[]
[]
[]
[]
[]
[null,null,"STEP4 (Automated)"]

{"sheet":"Budget_AddReduce_template","index":1,"n_rows":28,"n_cols":4,"rows_kept":28,"cut":false,"hidden":true,"merged":[[30,0,30,1],[6,1,6,3]]}
["Award Information"]
["Oracle Assigned Award Number"]
["New Funding Total",0]
["Grant End Date"]
["Revised End Date"]
[]
[null,"Project Budget Addition / Reduction"]
[]
["Project Informaton"]
["Oracle Assigned Project Number",null,"Required"]
["Project Principal Investigator Last Name",null,"Required"]
[]
[null,"Optional","Required","Optional"]
[null,"Current Budget","Change","Revised Budget"]
["Expenditure Category"]
["Salaries & Wages",null,null,{"$f":"B16+Table112142122[[#This Row],[Required]]","v":0}]
["Fringe Benefits",null,null,{"$f":"B17+Table112142122[[#This Row],[Required]]","v":0}]
["Supplies",null,null,{"$f":"B18+Table112142122[[#This Row],[Required]]","v":0}]
["Subcontracts",null,null,{"$f":"B19+Table112142122[[#This Row],[Required]]","v":0}]
["Other",null,null,{"$f":"B20+Table112142122[[#This Row],[Required]]","v":0}]
["Travel",null,null,{"$f":"B21+Table112142122[[#This Row],[Required]]","v":0}]
["Capital Equipment",null,null,{"$f":"B22+Table112142122[[#This Row],[Required]]","v":0}]
["Financial Aid-Tuition",null,null,{"$f":"B23+Table112142122[[#This Row],[Required]]","v":0}]
["Financial Aid-Activity Fees",null,null,{"$f":"B24+Table112142122[[#This Row],[Required]]","v":0}]
["Stipends",null,null,{"$f":"B25+Table112142122[[#This Row],[Required]]","v":0}]
["Student Health Insurance",null,null,{"$f":"B26+Table112142122[[#This Row],[Required]]","v":0}]
["F&A Expense",null,null,{"$f":"B27+Table112142122[[#This Row],[Required]]","v":0}]
["Total  Budget",{"$f":"SUM(B16:B27)","v":0},{"$f":"SUM(C16:C27)","v":0},0]

{"sheet":"Budget_Reallocate_Template","index":2,"n_rows":107,"n_cols":5,"rows_kept":107,"cut":false,"hidden":true,"merged":[[6,1,6,3],[31,1,31,3],[63,1,63,3],[86,1,86,3]]}
["Award Information"]
["Oracle Assigned Award Number"]
["New Funding Total",0]
["Grant End Date"]
["Revised End Date"]
[]
[null,"Project Budget Reallocation"]
[]
["Project Informaton"]
["Oracle Assigned Project Number",null,"Required"]
["Project Principal Investigator Last Name",null,"Required"]
[]
[null,"Optional","Required","Optional"]
[null,"Current Budget","Change","Revised Budget"]
["Expenditure Category"]
["Salaries & Wages",null,null,{"$f":"B16+C16","v":0}]
["Fringe Benefits",null,null,{"$f":"B17+C17","v":0}]
["Supplies",null,null,0]
["Subcontracts",null,null,0]
["Other",null,null,0]
["Travel",null,null,0]
["Capital Equipment",null,null,0]
["Financial Aid-Tuition",null,null,0]
["Financial Aid-Activity Fees",null,null,0]
["Stipends",null,null,0]
["Student Health Insurance",null,null,0]
["F&A Expense",null,null,0]
["Total Budget",{"$f":"SUM(B16:B27)","v":0},{"$f":"SUM(C16:C27)","v":0},0]
[]
[]
[]
[null,"Project Budget Addition / Reduction"]
["Project Informaton"]
["Oracle Assigned Project Number",null,"Required"]
["Project Principal Investigator Last Name",null,"Required"]
[]
[null,"Optional","Required","Optional"]
[null,"Current Budget","Change","Revised Budget"]
["Expenditure Category"]
["Salaries & Wages",null,null,{"$f":"B40+C40","v":0}]
["Fringe Benefits",null,null,{"$f":"B41+C41","v":0}]
["Supplies",null,null,0]
["Subcontracts",null,null,0]
["Other",null,null,0]
["Travel",null,null,0]
["Capital Equipment",null,null,0]
["Financial Aid-Tuition",null,null,0]
["Financial Aid-Activity Fees",null,null,0]
["Stipends",null,null,0]
["Student Health Insurance",null,null,0]
["F&A Expense",null,null,0]
["Total  Budget",{"$f":"SUM(B40:B51)","v":0},{"$f":"SUM(C40:C51)","v":0},0,0]
[]
[]
["Budget Summary termplate"]
["Budget action = Both"]
[]
["Award Information"]
["Oracle Assigned Award Number"]
["New Funding Total"]
["Grant End Date"]
["Revised End Date"]
[]
[null,"Project Budget Reallocation"]
[]
["Project Informaton"]
["Oracle Assigned Project Number"]
["Project Principal Investigator Last Name"]
[]
[]
["Expenditure Category"]
["Salaries & Wages"]
["Fringe Benefits"]
["Supplies"]
["Subcontracts"]
["Other"]
["Travel"]
["Capital Equipment"]
["Financial Aid-Tuition"]
["Financial Aid-Activity Fees"]
["Stipends"]
["Student Health Insurance"]
["F&A Expense"]
["Total  Budget"]
[]
[]
[null,"Project Budget Addition / Reduction"]
[]
["Project Informaton"]
["Oracle Assigned Project Number"]
["Project Principal Investigator Last Name"]
[]
[]
["Expenditure Category"]
["Salaries & Wages"]
["Fringe Benefits"]
["Supplies"]
["Subcontracts"]
["Other"]
["Travel"]
["Capital Equipment"]
["Financial Aid-Tuition"]
["Financial Aid-Activity Fees"]
["Stipends"]
["Student Health Insurance"]
["F&A Expense"]
["Total  Budget"]

{"sheet":"Your_Notes","index":3,"n_rows":0,"n_cols":0,"rows_kept":0,"cut":false,"hidden":false,"merged":[]}